Workbook

Sheet Trailing
C17: Quote: | D17: ^GSPC
C18: Start: | D18: 1995-02-01
C19: End: | D19: 2015-10-08
K20: Months: | L20: 8
A22: Year | B22: Month | C22: =YahooStockQuotes(YEAR(D18),MONTH(D18),DAY(D18),YEAR(D19),MONTH(D19),DAY(D19),"m","^GSPC") -> Date | D22: Open | E22: High | F22: Low | G22: Close | H22: Volume | I22: Adj Close | K22: Trailing SS | L22: Sell | M22: Trailing SB | N22: Buy
A23: =YEAR(C23) -> 2015 | B23: =LEFT(TEXT(C23,"MMM")) -> o | C23: 2015-10-01 | D23: 1919.650024 | E23: 2016.5 | F23: 1893.699951 | G23: 2013.430054 | H23: 4907301600 | I23: 2013.430054 | K23: =MIN(F24:OFFSET(F24,$L$20-1,0)) -> 1867.01001 | L23: =IF(F23<K23,G23,"") ->  | M23: =MAX(E24:OFFSET(E24,$L$20-1,0)) -> 2134.719971 | N23: =IF(E23>M23,G23,"") -> 
A24: =IF(YEAR(C24)<>YEAR(C23),YEAR(C24),"") ->  | B24: s | C24: 2015-09-01 | D24: 1970.089966 | E24: 2020.859985 | F24: 1871.910034 | G24: 1920.030029 | H24: 4024497100 | I24: 1920.030029 | K24: =MIN(F25:OFFSET(F25,$L$20-1,0)) -> 1867.01001 | L24: =IF(F24<K24,G24,"") ->  | M24: =MAX(E25:OFFSET(E25,$L$20-1,0)) -> 2134.719971 | N24: =IF(E24>M24,G24,"") -> 
A25: =IF(YEAR(C25)<>YEAR(C24),YEAR(C25),"") ->  | B25: a | C25: 2015-08-03 | D25: 2104.48999 | E25: 2112.659912 | F25: 1867.01001 | G25: 1972.180054 | H25: 4216280400 | I25: 1972.180054 | K25: =MIN(F26:OFFSET(F26,$L$20-1,0)) -> 1972.560059 | L25: 1972.180054 | M25: =MAX(E26:OFFSET(E26,$L$20-1,0)) -> 2134.719971
B26: j | C26: 2015-07-01 | D26: 2067 | E26: 2132.820068 | F26: 2044.02002 | G26: 2103.840088 | H26: 3709178600 | I26: 2103.840088 | K26: =MIN(F27:OFFSET(F27,$L$20-1,0)) -> 1972.560059 | M26: =MAX(E27:OFFSET(E27,$L$20-1,0)) -> 2134.719971
B27: j | C27: 2015-06-01 | D27: 2108.639893 | E27: 2129.870117 | F27: 2056.320068 | G27: 2063.110107 | H27: 3513296300 | I27: 2063.110107 | K27: =MIN(F28:OFFSET(F28,$L$20-1,0)) -> 1820.660034 | M27: =MAX(E28:OFFSET(E28,$L$20-1,0)) -> 2134.719971
B28: m | C28: 2015-05-01 | D28: 2087.379883 | E28: 2134.719971 | F28: 2067.929932 | G28: 2107.389893 | H28: 3455756000 | I28: 2107.389893 | K28: =MIN(F29:OFFSET(F29,$L$20-1,0)) -> 1820.660034 | M28: =MAX(E29:OFFSET(E29,$L$20-1,0)) -> 2125.919922 | N28: 2107.389893
B29: a | C29: 2015-04-01 | D29: 2067.629883 | E29: 2125.919922 | F29: 2048.379883 | G29: 2085.51001 | H29: 3521458000 | I29: 2085.51001 | K29: =MIN(F30:OFFSET(F30,$L$20-1,0)) -> 1820.660034 | M29: =MAX(E30:OFFSET(E30,$L$20-1,0)) -> 2119.590088 | N29: 2085.51001
B30: m | C30: 2015-03-02 | D30: 2105.22998 | E30: 2117.52002 | F30: 2039.689941 | G30: 2067.889893 | H30: 3638745400 | I30: 2067.889893 | K30: =MIN(F31:OFFSET(F31,$L$20-1,0)) -> 1820.660034 | M30: =MAX(E31:OFFSET(E31,$L$20-1,0)) -> 2119.590088
B31: f | C31: 2015-02-02 | D31: 1996.670044 | E31: 2119.590088 | F31: 1980.900024 | G31: 2104.5 | H31: 3806470500 | I31: 2104.5 | K31: =MIN(F32:OFFSET(F32,$L$20-1,0)) -> 1820.660034 | M31: =MAX(E32:OFFSET(E32,$L$20-1,0)) -> 2093.550049 | N31: 2104.5
B32: j | C32: 2015-01-02 | D32: 2058.899902 | E32: 2072.360107 | F32: 1988.119995 | G32: 1994.98999 | H32: 4091934500 | I32: 1994.98999 | K32: =MIN(F33:OFFSET(F33,$L$20-1,0)) -> 1820.660034 | M32: =MAX(E33:OFFSET(E33,$L$20-1,0)) -> 2093.550049
A33: 2014 | B33: d | C33: 2014-12-01 | D33: 2065.780029 | E33: 2093.550049 | F33: 1972.560059 | G33: 2058.899902 | H33: 3788631300 | I33: 2058.899902 | K33: =MIN(F34:OFFSET(F34,$L$20-1,0)) -> 1814.359985 | M33: =MAX(E34:OFFSET(E34,$L$20-1,0)) -> 2075.76001 | N33: 2058.899902
B34: n | C34: 2014-11-03 | D34: 2018.209961 | E34: 2075.76001 | F34: 2001.01001 | G34: 2067.560059 | H34: 3479201500 | I34: 2067.560059 | K34: =MIN(F35:OFFSET(F35,$L$20-1,0)) -> 1814.359985 | M34: =MAX(E35:OFFSET(E35,$L$20-1,0)) -> 2019.26001 | N34: 2067.560059
B35: o | C35: 2014-10-01 | D35: 1971.439941 | E35: 2018.189941 | F35: 1820.660034 | G35: 2018.050049 | H35: 4260310800 | I35: 2018.050049 | K35: =MIN(F36:OFFSET(F36,$L$20-1,0)) -> 1737.920044 | M35: =MAX(E36:OFFSET(E36,$L$20-1,0)) -> 2019.26001
B36: s | C36: 2014-09-02 | D36: 2004.069946 | E36: 2019.26001 | F36: 1964.040039 | G36: 1972.290039 | H36: 3364623800 | I36: 1972.290039 | K36: =MIN(F37:OFFSET(F37,$L$20-1,0)) -> 1737.920044 | M36: =MAX(E37:OFFSET(E37,$L$20-1,0)) -> 2005.040039 | N36: 1972.290039
B37: a | C37: 2014-08-01 | D37: 1929.800049 | E37: 2005.040039 | F37: 1904.780029 | G37: 2003.369995 | H37: 2875718500 | I37: 2003.369995 | K37: =MIN(F38:OFFSET(F38,$L$20-1,0)) -> 1737.920044 | M37: =MAX(E38:OFFSET(E38,$L$20-1,0)) -> 1991.390015 | N37: 2003.369995
B38: j | C38: 2014-07-01 | D38: 1962.290039 | E38: 1991.390015 | F38: 1930.670044 | G38: 1930.670044 | H38: 3214440400 | I38: 1930.670044 | K38: =MIN(F39:OFFSET(F39,$L$20-1,0)) -> 1737.920044 | M38: =MAX(E39:OFFSET(E39,$L$20-1,0)) -> 1968.170044 | N38: 1930.670044
B39: j | C39: 2014-06-02 | D39: 1923.869995 | E39: 1968.170044 | F39: 1915.97998 | G39: 1960.22998 | H39: 3158130000 | I39: 1960.22998 | K39: =MIN(F40:OFFSET(F40,$L$20-1,0)) -> 1646.469971 | M39: =MAX(E40:OFFSET(E40,$L$20-1,0)) -> 1924.030029 | N39: 1960.22998
B40: m | C40: 2014-05-01 | D40: 1884.390015 | E40: 1924.030029 | F40: 1859.790039 | G40: 1923.569946 | H40: 3185100900 | I40: 1923.569946 | K40: =MIN(F41:OFFSET(F41,$L$20-1,0)) -> 1633.410034 | M40: =MAX(E41:OFFSET(E41,$L$20-1,0)) -> 1897.280029 | N40: 1923.569946
B41: a | C41: 2014-04-01 | D41: 1873.959961 | E41: 1897.280029 | F41: 1814.359985 | G41: 1883.949951 | H41: 3589287600 | I41: 1883.949951 | K41: =MIN(F42:OFFSET(F42,$L$20-1,0)) -> 1627.469971 | M41: =MAX(E42:OFFSET(E42,$L$20-1,0)) -> 1883.969971 | N41: 1883.949951
B42: m | C42: 2014-03-03 | D42: 1857.680054 | E42: 1883.969971 | F42: 1834.439941 | G42: 1872.339966 | H42: 3579015700 | I42: 1872.339966 | K42: =MIN(F43:OFFSET(F43,$L$20-1,0)) -> 1604.569946 | M42: =MAX(E43:OFFSET(E43,$L$20-1,0)) -> 1867.920044 | N42: 1872.339966
B43: f | C43: 2014-02-03 | D43: 1782.680054 | E43: 1867.920044 | F43: 1737.920044 | G43: 1859.449951 | H43: 3875949400 | I43: 1859.449951 | K43: =MIN(F44:OFFSET(F44,$L$20-1,0)) -> 1560.329956 | M43: =MAX(E44:OFFSET(E44,$L$20-1,0)) -> 1850.839966 | N43: 1859.449951
B44: j | C44: 2014-01-02 | D44: 1845.859985 | E44: 1850.839966 | F44: 1770.449951 | G44: 1782.589966 | H44: 3806266600 | I44: 1782.589966 | K44: =MIN(F45:OFFSET(F45,$L$20-1,0)) -> 1560.329956 | M44: =MAX(E45:OFFSET(E45,$L$20-1,0)) -> 1849.439941 | N44: 1782.589966
A45: 2013 | B45: d | C45: 2013-12-02 | D45: 1806.550049 | E45: 1849.439941 | F45: 1767.98999 | G45: 1848.359985 | H45: 3203412300 | I45: 1848.359985 | K45: =MIN(F46:OFFSET(F46,$L$20-1,0)) -> 1536.030029 | M45: =MAX(E46:OFFSET(E46,$L$20-1,0)) -> 1813.550049 | N45: 1848.359985
B46: n | C46: 2013-11-01 | D46: 1758.699951 | E46: 1813.550049 | F46: 1746.199951 | G46: 1805.810059 | H46: 3261324500 | I46: 1805.810059 | K46: =MIN(F47:OFFSET(F47,$L$20-1,0)) -> 1501.47998 | M46: =MAX(E47:OFFSET(E47,$L$20-1,0)) -> 1775.219971 | N46: 1805.810059
B47: o | C47: 2013-10-01 | D47: 1682.410034 | E47: 1775.219971 | F47: 1646.469971 | G47: 1756.540039 | H47: 3498866500 | I47: 1756.540039 | K47: =MIN(F48:OFFSET(F48,$L$20-1,0)) -> 1485.01001 | M47: =MAX(E48:OFFSET(E48,$L$20-1,0)) -> 1729.859985 | N47: 1756.540039
B48: s | C48: 2013-09-03 | D48: 1635.949951 | E48: 1729.859985 | F48: 1633.410034 | G48: 1681.550049 | H48: 3474152000 | I48: 1681.550049 | K48: =MIN(F49:OFFSET(F49,$L$20-1,0)) -> 1426.189941 | M48: =MAX(E49:OFFSET(E49,$L$20-1,0)) -> 1709.670044 | N48: 1681.550049
B49: a | C49: 2013-08-01 | D49: 1689.420044 | E49: 1709.670044 | F49: 1627.469971 | G49: 1632.969971 | H49: 3069868600 | I49: 1632.969971 | K49: =MIN(F50:OFFSET(F50,$L$20-1,0)) -> 1398.109985 | M49: =MAX(E50:OFFSET(E50,$L$20-1,0)) -> 1698.780029 | N49: 1632.969971
B50: j | C50: 2013-07-01 | D50: 1609.780029 | E50: 1698.780029 | F50: 1604.569946 | G50: 1685.72998 | H50: 3270645900 | I50: 1685.72998 | K50: =MIN(F51:OFFSET(F51,$L$20-1,0)) -> 1343.349976 | M50: =MAX(E51:OFFSET(E51,$L$20-1,0)) -> 1687.180054 | N50: 1685.72998
B51: j | C51: 2013-06-03 | D51: 1631.709961 | E51: 1654.189941 | F51: 1560.329956 | G51: 1606.280029 | H51: 3996199000 | I51: 1606.280029 | K51: =MIN(F52:OFFSET(F52,$L$20-1,0)) -> 1343.349976 | M51: =MAX(E52:OFFSET(E52,$L$20-1,0)) -> 1687.180054
B52: m | C52: 2013-05-01 | D52: 1597.550049 | E52: 1687.180054 | F52: 1581.280029 | G52: 1630.73999 | H52: 3661220400 | I52: 1630.73999 | K52: =MIN(F53:OFFSET(F53,$L$20-1,0)) -> 1343.349976 | M52: =MAX(E53:OFFSET(E53,$L$20-1,0)) -> 1597.569946 | N52: 1630.73999
B53: a | C53: 2013-04-01 | D53: 1569.180054 | E53: 1597.569946 | F53: 1536.030029 | G53: 1597.569946 | H53: 3674685000 | I53: 1597.569946 | K53: =MIN(F54:OFFSET(F54,$L$20-1,0)) -> 1343.349976 | M53: =MAX(E54:OFFSET(E54,$L$20-1,0)) -> 1570.280029 | N53: 1597.569946
B54: m | C54: 2013-03-01 | D54: 1514.680054 | E54: 1570.280029 | F54: 1501.47998 | G54: 1569.189941 | H54: 3591577500 | I54: 1569.189941 | K54: =MIN(F55:OFFSET(F55,$L$20-1,0)) -> 1325.410034 | M54: =MAX(E55:OFFSET(E55,$L$20-1,0)) -> 1530.939941 | N54: 1569.189941
B55: f | C55: 2013-02-01 | D55: 1498.109985 | E55: 1530.939941 | F55: 1485.01001 | G55: 1514.680054 | H55: 3851884200 | I55: 1514.680054 | K55: =MIN(F56:OFFSET(F56,$L$20-1,0)) -> 1266.73999 | M55: =MAX(E56:OFFSET(E56,$L$20-1,0)) -> 1509.939941 | N55: 1514.680054
B56: j | C56: 2013-01-02 | D56: 1426.189941 | E56: 1509.939941 | F56: 1426.189941 | G56: 1498.109985 | H56: 3802304200 | I56: 1498.109985 | K56: =MIN(F57:OFFSET(F57,$L$20-1,0)) -> 1266.73999 | M56: =MAX(E57:OFFSET(E57,$L$20-1,0)) -> 1474.51001 | N56: 1498.109985
A57: 2012 | B57: d | C57: 2012-12-03 | D57: 1416.339966 | E57: 1448 | F57: 1398.109985 | G57: 1426.189941 | H57: 3479625500 | I57: 1426.189941 | K57: =MIN(F58:OFFSET(F58,$L$20-1,0)) -> 1266.73999 | M57: =MAX(E58:OFFSET(E58,$L$20-1,0)) -> 1474.51001
B58: n | C58: 2012-11-01 | D58: 1412.199951 | E58: 1434.27002 | F58: 1343.349976 | G58: 1416.180054 | H58: 3593110000 | I58: 1416.180054 | K58: =MIN(F59:OFFSET(F59,$L$20-1,0)) -> 1266.73999 | M58: =MAX(E59:OFFSET(E59,$L$20-1,0)) -> 1474.51001
B59: o | C59: 2012-10-01 | D59: 1440.900024 | E59: 1470.959961 | F59: 1403.280029 | G59: 1412.160034 | H59: 3587115700 | I59: 1412.160034 | K59: =MIN(F60:OFFSET(F60,$L$20-1,0)) -> 1266.73999 | M59: =MAX(E60:OFFSET(E60,$L$20-1,0)) -> 1474.51001
B60: s | C60: 2012-09-04 | D60: 1406.540039 | E60: 1474.51001 | F60: 1396.560059 | G60: 1440.670044 | H60: 3857553100 | I60: 1440.670044 | K60: =MIN(F61:OFFSET(F61,$L$20-1,0)) -> 1258.859985 | M60: =MAX(E61:OFFSET(E61,$L$20-1,0)) -> 1426.680054 | N60: 1440.670044
B61: a | C61: 2012-08-01 | D61: 1379.319946 | E61: 1426.680054 | F61: 1354.650024 | G61: 1406.579956 | H61: 3183567800 | I61: 1406.579956 | K61: =MIN(F62:OFFSET(F62,$L$20-1,0)) -> 1202.369995 | M61: =MAX(E62:OFFSET(E62,$L$20-1,0)) -> 1422.380005 | N61: 1406.579956
B62: j | C62: 2012-07-02 | D62: 1362.329956 | E62: 1391.73999 | F62: 1325.410034 | G62: 1379.319946 | H62: 3663113300 | I62: 1379.319946 | K62: =MIN(F63:OFFSET(F63,$L$20-1,0)) -> 1158.660034 | M62: =MAX(E63:OFFSET(E63,$L$20-1,0)) -> 1422.380005
B63: j | C63: 2012-06-01 | D63: 1309.869995 | E63: 1363.459961 | F63: 1266.73999 | G63: 1362.160034 | H63: 4103472300 | I63: 1362.160034 | K63: =MIN(F64:OFFSET(F64,$L$20-1,0)) -> 1074.77002 | M63: =MAX(E64:OFFSET(E64,$L$20-1,0)) -> 1422.380005
B64: m | C64: 2012-05-01 | D64: 1397.859985 | E64: 1415.319946 | F64: 1291.97998 | G64: 1310.329956 | H64: 4158095900 | I64: 1310.329956 | K64: =MIN(F65:OFFSET(F65,$L$20-1,0)) -> 1074.77002 | M64: =MAX(E65:OFFSET(E65,$L$20-1,0)) -> 1422.380005
B65: a | C65: 2012-04-02 | D65: 1408.469971 | E65: 1422.380005 | F65: 1357.380005 | G65: 1397.910034 | H65: 3916786000 | I65: 1397.910034 | K65: =MIN(F66:OFFSET(F66,$L$20-1,0)) -> 1074.77002 | M65: =MAX(E66:OFFSET(E66,$L$20-1,0)) -> 1419.150024 | N65: 1397.910034
B66: m | C66: 2012-03-01 | D66: 1365.900024 | E66: 1419.150024 | F66: 1340.030029 | G66: 1408.469971 | H66: 3980752200 | I66: 1408.469971 | K66: =MIN(F67:OFFSET(F67,$L$20-1,0)) -> 1074.77002 | M66: =MAX(E67:OFFSET(E67,$L$20-1,0)) -> 1378.040039 | N66: 1408.469971
B67: f | C67: 2012-02-01 | D67: 1312.449951 | E67: 1378.040039 | F67: 1312.449951 | G67: 1365.680054 | H67: 4143404000 | I67: 1365.680054 | K67: =MIN(F68:OFFSET(F68,$L$20-1,0)) -> 1074.77002 | M67: =MAX(E68:OFFSET(E68,$L$20-1,0)) -> 1356.47998 | N67: 1365.680054
B68: j | C68: 2012-01-03 | D68: 1258.859985 | E68: 1333.469971 | F68: 1258.859985 | G68: 1312.410034 | H68: 4190155500 | I68: 1312.410034 | K68: =MIN(F69:OFFSET(F69,$L$20-1,0)) -> 1074.77002 | M68: =MAX(E69:OFFSET(E69,$L$20-1,0)) -> 1370.579956
A69: 2011 | B69: d | C69: 2011-12-01 | D69: 1246.910034 | E69: 1269.369995 | F69: 1202.369995 | G69: 1257.599976 | H69: 3667346600 | I69: 1257.599976 | K69: =MIN(F70:OFFSET(F70,$L$20-1,0)) -> 1074.77002 | M69: =MAX(E70:OFFSET(E70,$L$20-1,0)) -> 1370.579956
B70: n | C70: 2011-11-01 | D70: 1251 | E70: 1277.550049 | F70: 1158.660034 | G70: 1246.959961 | H70: 4289379000 | I70: 1246.959961 | K70: =MIN(F71:OFFSET(F71,$L$20-1,0)) -> 1074.77002 | M70: =MAX(E71:OFFSET(E71,$L$20-1,0)) -> 1370.579956
B71: o | C71: 2011-10-03 | D71: 1131.209961 | E71: 1292.660034 | F71: 1074.77002 | G71: 1253.300049 | H71: 4874946600 | I71: 1253.300049 | K71: =MIN(F72:OFFSET(F72,$L$20-1,0)) -> 1101.540039 | L71: 1253.300049 | M71: =MAX(E72:OFFSET(E72,$L$20-1,0)) -> 1370.579956
B72: s | C72: 2011-09-01 | D72: 1219.119995 | E72: 1229.290039 | F72: 1114.219971 | G72: 1131.420044 | H72: 5104933800 | I72: 1131.420044 | K72: =MIN(F73:OFFSET(F73,$L$20-1,0)) -> 1101.540039 | M72: =MAX(E73:OFFSET(E73,$L$20-1,0)) -> 1370.579956
B73: a | C73: 2011-08-01 | D73: 1292.589966 | E73: 1307.380005 | F73: 1101.540039 | G73: 1218.890015 | H73: 4942913400 | I73: 1218.890015 | K73: =MIN(F74:OFFSET(F74,$L$20-1,0)) -> 1186.599976 | L73: 1218.890015 | M73: =MAX(E74:OFFSET(E74,$L$20-1,0)) -> 1370.579956
B74: j | C74: 2011-07-01 | D74: 1320.640015 | E74: 1356.47998 | F74: 1282.859985 | G74: 1292.280029 | H74: 4308168000 | I74: 1292.280029 | K74: =MIN(F75:OFFSET(F75,$L$20-1,0)) -> 1173 | M74: =MAX(E75:OFFSET(E75,$L$20-1,0)) -> 1370.579956
B75: j | C75: 2011-06-01 | D75: 1345.199951 | E75: 1345.199951 | F75: 1258.069946 | G75: 1320.640015 | H75: 4105601300 | I75: 1320.640015 | K75: =MIN(F76:OFFSET(F76,$L$20-1,0)) -> 1131.869995 | M75: =MAX(E76:OFFSET(E76,$L$20-1,0)) -> 1370.579956
B76: m | C76: 2011-05-02 | D76: 1365.209961 | E76: 1370.579956 | F76: 1311.800049 | G76: 1345.199951 | H76: 4114534200 | I76: 1345.199951 | K76: =MIN(F77:OFFSET(F77,$L$20-1,0)) -> 1049.719971 | M76: =MAX(E77:OFFSET(E77,$L$20-1,0)) -> 1364.560059 | N76: 1345.199951
B77: a | C77: 2011-04-01 | D77: 1329.47998 | E77: 1364.560059 | F77: 1294.699951 | G77: 1363.609985 | H77: 4042194000 | I77: 1363.609985 | K77: =MIN(F78:OFFSET(F78,$L$20-1,0)) -> 1039.699951 | M77: =MAX(E78:OFFSET(E78,$L$20-1,0)) -> 1344.069946 | N77: 1363.609985
B78: m | C78: 2011-03-01 | D78: 1328.640015 | E78: 1332.280029 | F78: 1249.050049 | G78: 1325.829956 | H78: 4046691700 | I78: 1325.829956 | K78: =MIN(F79:OFFSET(F79,$L$20-1,0)) -> 1010.909973 | M78: =MAX(E79:OFFSET(E79,$L$20-1,0)) -> 1344.069946
B79: f | C79: 2011-02-01 | D79: 1289.140015 | E79: 1344.069946 | F79: 1289.140015 | G79: 1327.219971 | H79: 3182974200 | I79: 1327.219971 | K79: =MIN(F80:OFFSET(F80,$L$20-1,0)) -> 1010.909973 | M79: =MAX(E80:OFFSET(E80,$L$20-1,0)) -> 1302.670044 | N79: 1327.219971
B80: j | C80: 2011-01-03 | D80: 1257.619995 | E80: 1302.670044 | F80: 1257.619995 | G80: 1286.119995 | H80: 4816605000 | I80: 1286.119995 | K80: =MIN(F81:OFFSET(F81,$L$20-1,0)) -> 1010.909973 | M80: =MAX(E81:OFFSET(E81,$L$20-1,0)) -> 1262.599976 | N80: 1286.119995
A81: 2010 | B81: d | C81: 2010-12-01 | D81: 1186.599976 | E81: 1262.599976 | F81: 1186.599976 | G81: 1257.640015 | H81: 3762922700 | I81: 1257.640015 | K81: =MIN(F82:OFFSET(F82,$L$20-1,0)) -> 1010.909973 | M81: =MAX(E82:OFFSET(E82,$L$20-1,0)) -> 1227.079956 | N81: 1257.640015
B82: n | C82: 2010-11-01 | D82: 1185.709961 | E82: 1227.079956 | F82: 1173 | G82: 1180.550049 | H82: 4354084200 | I82: 1180.550049 | K82: =MIN(F83:OFFSET(F83,$L$20-1,0)) -> 1010.909973 | M82: =MAX(E83:OFFSET(E83,$L$20-1,0)) -> 1219.800049 | N82: 1180.550049
B83: o | C83: 2010-10-01 | D83: 1143.48999 | E83: 1196.140015 | F83: 1131.869995 | G83: 1183.26001 | H83: 4432102300 | I83: 1183.26001 | K83: =MIN(F84:OFFSET(F84,$L$20-1,0)) -> 1010.909973 | M83: =MAX(E84:OFFSET(E84,$L$20-1,0)) -> 1219.800049
B84: s | C84: 2010-09-01 | D84: 1049.719971 | E84: 1157.160034 | F84: 1049.719971 | G84: 1141.199951 | H84: 3993981400 | I84: 1141.199951 | K84: =MIN(F85:OFFSET(F85,$L$20-1,0)) -> 1010.909973 | M84: =MAX(E85:OFFSET(E85,$L$20-1,0)) -> 1219.800049
B85: a | C85: 2010-08-02 | D85: 1107.530029 | E85: 1129.23999 | F85: 1039.699951 | G85: 1049.329956 | H85: 4080773600 | I85: 1049.329956 | K85: =MIN(F86:OFFSET(F86,$L$20-1,0)) -> 1010.909973 | M85: =MAX(E86:OFFSET(E86,$L$20-1,0)) -> 1219.800049
B86: j | C86: 2010-07-01 | D86: 1031.099976 | E86: 1120.949951 | F86: 1010.909973 | G86: 1101.599976 | H86: 4704026600 | I86: 1101.599976 | K86: =MIN(F87:OFFSET(F87,$L$20-1,0)) -> 1028.329956 | L86: 1101.599976 | M86: =MAX(E87:OFFSET(E87,$L$20-1,0)) -> 1219.800049
B87: j | C87: 2010-06-01 | D87: 1087.300049 | E87: 1131.22998 | F87: 1028.329956 | G87: 1030.709961 | H87: 5235174000 | I87: 1030.709961 | K87: =MIN(F88:OFFSET(F88,$L$20-1,0)) -> 1019.950012 | M87: =MAX(E88:OFFSET(E88,$L$20-1,0)) -> 1219.800049
B88: =LEFT(TEXT(C88,"MMM")) -> m | C88: 2010-05-03 | D88: 1188.579956 | E88: 1205.130005 | F88: 1040.780029 | G88: 1089.410034 | H88: 6626699400 | I88: 1089.410034 | K88: =MIN(F89:OFFSET(F89,$L$20-1,0)) -> 991.969971 | L88: =IF(F88<K88,G88,"") ->  | M88: =MAX(E89:OFFSET(E89,$L$20-1,0)) -> 1219.800049 | N88: =IF(E88>M88,G88,"") -> 
A89: =IF(YEAR(C89)<>YEAR(C88),YEAR(C89),"") ->  | B89: a | C89: 2010-04-01 | D89: 1171.22998 | E89: 1219.800049 | F89: 1170.689941 | G89: 1186.689941 | H89: 5847150900 | I89: 1186.689941 | K89: =MIN(F90:OFFSET(F90,$L$20-1,0)) -> 978.51001 | M89: =MAX(E90:OFFSET(E90,$L$20-1,0)) -> 1180.689941 | N89: 1186.689941
B90: m | C90: 2010-03-01 | D90: 1105.359985 | E90: 1180.689941 | F90: 1105.359985 | G90: 1169.430054 | H90: 4702951700 | I90: 1169.430054 | K90: =MIN(F91:OFFSET(F91,$L$20-1,0)) -> 869.320007 | M90: =MAX(E91:OFFSET(E91,$L$20-1,0)) -> 1150.449951 | N90: 1169.430054
B91: f | C91: 2010-02-01 | D91: 1073.890015 | E91: 1112.420044 | F91: 1044.5 | G91: 1104.48999 | H91: 4658238400 | I91: 1104.48999 | K91: =MIN(F92:OFFSET(F92,$L$20-1,0)) -> 869.320007 | M91: =MAX(E92:OFFSET(E92,$L$20-1,0)) -> 1150.449951
B92: j | C92: 2010-01-04 | D92: 1116.560059 | E92: 1150.449951 | F92: 1071.589966 | G92: 1073.869995 | H92: 5071601500 | I92: 1073.869995 | K92: =MIN(F93:OFFSET(F93,$L$20-1,0)) -> 866.099976 | M92: =MAX(E93:OFFSET(E93,$L$20-1,0)) -> 1130.380005 | N92: 1073.869995
A93: 2009 | B93: d | C93: 2009-12-01 | D93: 1098.890015 | E93: 1130.380005 | F93: 1085.890015 | G93: 1115.099976 | H93: 4163287200 | I93: 1115.099976 | K93: =MIN(F94:OFFSET(F94,$L$20-1,0)) -> 783.320007 | M93: =MAX(E94:OFFSET(E94,$L$20-1,0)) -> 1113.689941 | N93: 1115.099976
B94: n | C94: 2009-11-02 | D94: 1036.180054 | E94: 1113.689941 | F94: 1029.380005 | G94: 1095.630005 | H94: 4443852500 | I94: 1095.630005 | K94: =MIN(F95:OFFSET(F95,$L$20-1,0)) -> 666.789978 | M94: =MAX(E95:OFFSET(E95,$L$20-1,0)) -> 1101.359985 | N94: 1095.630005
B95: o | C95: 2009-10-01 | D95: 1054.910034 | E95: 1101.359985 | F95: 1019.950012 | G95: 1036.189941 | H95: 5451064000 | I95: 1036.189941 | K95: =MIN(F96:OFFSET(F96,$L$20-1,0)) -> 666.789978 | M95: =MAX(E96:OFFSET(E96,$L$20-1,0)) -> 1080.150024 | N95: 1036.189941
B96: s | C96: 2009-09-01 | D96: 1019.52002 | E96: 1080.150024 | F96: 991.969971 | G96: 1057.079956 | H96: 5633064200 | I96: 1057.079956 | K96: =MIN(F97:OFFSET(F97,$L$20-1,0)) -> 666.789978 | M96: =MAX(E97:OFFSET(E97,$L$20-1,0)) -> 1039.469971 | N96: 1057.079956
B97: a | C97: 2009-08-03 | D97: 990.219971 | E97: 1039.469971 | F97: 978.51001 | G97: 1020.619995 | H97: 5764944200 | I97: 1020.619995 | K97: =MIN(F98:OFFSET(F98,$L$20-1,0)) -> 666.789978 | M97: =MAX(E98:OFFSET(E98,$L$20-1,0)) -> 996.679993 | N97: 1020.619995
B98: j | C98: 2009-07-01 | D98: 920.820007 | E98: 996.679993 | F98: 869.320007 | G98: 987.47998 | H98: 5080675400 | I98: 987.47998 | K98: =MIN(F99:OFFSET(F99,$L$20-1,0)) -> 666.789978 | M98: =MAX(E99:OFFSET(E99,$L$20-1,0)) -> 1007.51001
B99: j | C99: 2009-06-01 | D99: 923.26001 | E99: 956.22998 | F99: 888.859985 | G99: 919.320007 | H99: 5330941800 | I99: 919.320007 | K99: =MIN(F100:OFFSET(F100,$L$20-1,0)) -> 666.789978 | M99: =MAX(E100:OFFSET(E100,$L$20-1,0)) -> 1167.030029
B100: m | C100: 2009-05-01 | D100: 872.73999 | E100: 930.169983 | F100: 866.099976 | G100: 919.140015 | H100: 6883268000 | I100: 919.140015 | K100: =MIN(F101:OFFSET(F101,$L$20-1,0)) -> 666.789978 | M100: =MAX(E101:OFFSET(E101,$L$20-1,0)) -> 1303.040039
B101: a | C101: 2009-04-01 | D101: 793.590027 | E101: 888.700012 | F101: 783.320007 | G101: 872.809998 | H101: 6938945600 | I101: 872.809998 | K101: =MIN(F102:OFFSET(F102,$L$20-1,0)) -> 666.789978 | M101: =MAX(E102:OFFSET(E102,$L$20-1,0)) -> 1313.150024
B102: m | C102: 2009-03-02 | D102: 729.570007 | E102: 832.97998 | F102: 666.789978 | G102: 797.869995 | H102: 7633306300 | I102: 797.869995 | K102: =MIN(F103:OFFSET(F103,$L$20-1,0)) -> 734.52002 | L102: 797.869995 | M102: =MAX(E103:OFFSET(E103,$L$20-1,0)) -> 1313.150024
B103: f | C103: 2009-02-02 | D103: 823.090027 | E103: 875.01001 | F103: 734.52002 | G103: 735.090027 | H103: 7022036200 | I103: 735.090027 | K103: =MIN(F104:OFFSET(F104,$L$20-1,0)) -> 741.02002 | L103: 735.090027 | M103: =MAX(E104:OFFSET(E104,$L$20-1,0)) -> 1404.050049
B104: j | C104: 2009-01-02 | D104: 902.98999 | E104: 943.849976 | F104: 804.299988 | G104: 825.880005 | H104: 5872061000 | I104: 825.880005 | K104: =MIN(F105:OFFSET(F105,$L$20-1,0)) -> 741.02002 | M104: =MAX(E105:OFFSET(E105,$L$20-1,0)) -> 1440.23999
A105: 2008 | B105: d | C105: 2008-12-01 | D105: 888.609985 | E105: 918.849976 | F105: 815.690002 | G105: 903.25 | H105: 5320791300 | I105: 903.25 | K105: =MIN(F106:OFFSET(F106,$L$20-1,0)) -> 741.02002 | M105: =MAX(E106:OFFSET(E106,$L$20-1,0)) -> 1440.23999
B106: n | C106: 2008-11-03 | D106: 968.669983 | E106: 1007.51001 | F106: 741.02002 | G106: 896.23999 | H106: 6231635200 | I106: 896.23999 | K106: =MIN(F107:OFFSET(F107,$L$20-1,0)) -> 839.799988 | L106: 896.23999 | M106: =MAX(E107:OFFSET(E107,$L$20-1,0)) -> 1440.23999
B107: o | C107: 2008-10-01 | D107: 1164.170044 | E107: 1167.030029 | F107: 839.799988 | G107: 968.75 | H107: 7226842600 | I107: 968.75 | K107: =MIN(F108:OFFSET(F108,$L$20-1,0)) -> 1106.420044 | L107: 968.75 | M107: =MAX(E108:OFFSET(E108,$L$20-1,0)) -> 1440.23999
B108: s | C108: 2008-09-02 | D108: 1287.829956 | E108: 1303.040039 | F108: 1106.420044 | G108: 1166.359985 | H108: 6902142800 | I108: 1166.359985 | K108: =MIN(F109:OFFSET(F109,$L$20-1,0)) -> 1200.439941 | L108: 1166.359985 | M108: =MAX(E109:OFFSET(E109,$L$20-1,0)) -> 1471.77002
B109: a | C109: 2008-08-01 | D109: 1269.420044 | E109: 1313.150024 | F109: 1247.449951 | G109: 1282.829956 | H109: 4264482300 | I109: 1282.829956 | K109: =MIN(F110:OFFSET(F110,$L$20-1,0)) -> 1200.439941 | M109: =MAX(E110:OFFSET(E110,$L$20-1,0)) -> 1523.569946
B110: j | C110: 2008-07-01 | D110: 1276.689941 | E110: 1292.170044 | F110: 1200.439941 | G110: 1267.380005 | H110: 5923937200 | I110: 1267.380005 | K110: =MIN(F111:OFFSET(F111,$L$20-1,0)) -> 1256.97998 | L110: 1267.380005 | M110: =MAX(E111:OFFSET(E111,$L$20-1,0)) -> 1545.790039
B111: j | C111: 2008-06-02 | D111: 1399.619995 | E111: 1404.050049 | F111: 1272 | G111: 1280 | H111: 4840303300 | I111: 1280 | K111: =MIN(F112:OFFSET(F112,$L$20-1,0)) -> 1256.97998 | M111: =MAX(E112:OFFSET(E112,$L$20-1,0)) -> 1576.089966
B112: m | C112: 2008-05-01 | D112: 1385.969971 | E112: 1440.23999 | F112: 1373.069946 | G112: 1400.380005 | H112: 4039814700 | I112: 1400.380005 | K112: =MIN(F113:OFFSET(F113,$L$20-1,0)) -> 1256.97998 | M112: =MAX(E113:OFFSET(E113,$L$20-1,0)) -> 1576.089966
B113: a | C113: 2008-04-01 | D113: 1326.410034 | E113: 1404.569946 | F113: 1324.349976 | G113: 1385.589966 | H113: 4113069000 | I113: 1385.589966 | K113: =MIN(F114:OFFSET(F114,$L$20-1,0)) -> 1256.97998 | M113: =MAX(E114:OFFSET(E114,$L$20-1,0)) -> 1576.089966
B114: m | C114: 2008-03-03 | D114: 1330.449951 | E114: 1359.680054 | F114: 1256.97998 | G114: 1322.699951 | H114: 4868908000 | I114: 1322.699951 | K114: =MIN(F115:OFFSET(F115,$L$20-1,0)) -> 1270.050049 | L114: 1322.699951 | M114: =MAX(E115:OFFSET(E115,$L$20-1,0)) -> 1576.089966
B115: f | C115: 2008-02-01 | D115: 1378.599976 | E115: 1396.02002 | F115: 1316.75 | G115: 1330.630005 | H115: 4148143000 | I115: 1330.630005 | K115: =MIN(F116:OFFSET(F116,$L$20-1,0)) -> 1270.050049 | M115: =MAX(E116:OFFSET(E116,$L$20-1,0)) -> 1576.089966
B116: j | C116: 2008-01-02 | D116: 1467.969971 | E116: 1471.77002 | F116: 1270.050049 | G116: 1378.550049 | H116: 4925982300 | I116: 1378.550049 | K116: =MIN(F117:OFFSET(F117,$L$20-1,0)) -> 1370.599976 | L116: 1378.550049 | M116: =MAX(E117:OFFSET(E117,$L$20-1,0)) -> 1576.089966
A117: 2007 | B117: d | C117: 2007-12-03 | D117: 1479.630005 | E117: 1523.569946 | F117: 1435.650024 | G117: 1468.359985 | H117: 3363127500 | I117: 1468.359985 | K117: =MIN(F118:OFFSET(F118,$L$20-1,0)) -> 1370.599976 | M117: =MAX(E118:OFFSET(E118,$L$20-1,0)) -> 1576.089966
B118: n | C118: 2007-11-01 | D118: 1545.790039 | E118: 1545.790039 | F118: 1406.099976 | G118: 1481.140015 | H118: 4317578500 | I118: 1481.140015 | K118: =MIN(F119:OFFSET(F119,$L$20-1,0)) -> 1363.97998 | M118: =MAX(E119:OFFSET(E119,$L$20-1,0)) -> 1576.089966
B119: o | C119: 2007-10-01 | D119: 1527.290039 | E119: 1576.089966 | F119: 1489.560059 | G119: 1549.380005 | H119: 3477202100 | I119: 1549.380005 | K119: =MIN(F120:OFFSET(F120,$L$20-1,0)) -> 1363.97998 | M119: =MAX(E120:OFFSET(E120,$L$20-1,0)) -> 1555.900024 | N119: 1549.380005
B120: s | C120: 2007-09-04 | D120: 1473.959961 | E120: 1538.73999 | F120: 1439.290039 | G120: 1526.75 | H120: 3196581500 | I120: 1526.75 | K120: =MIN(F121:OFFSET(F121,$L$20-1,0)) -> 1363.97998 | M120: =MAX(E121:OFFSET(E121,$L$20-1,0)) -> 1555.900024
B121: a | C121: 2007-08-01 | D121: 1455.180054 | E121: 1503.890015 | F121: 1370.599976 | G121: 1473.98999 | H121: 4091885600 | I121: 1473.98999 | K121: =MIN(F122:OFFSET(F122,$L$20-1,0)) -> 1363.97998 | M121: =MAX(E122:OFFSET(E122,$L$20-1,0)) -> 1555.900024
B122: j | C122: 2007-07-02 | D122: 1504.660034 | E122: 1555.900024 | F122: 1454.25 | G122: 1455.27002 | H122: 3564854700 | I122: 1455.27002 | K122: =MIN(F123:OFFSET(F123,$L$20-1,0)) -> 1360.97998 | M122: =MAX(E123:OFFSET(E123,$L$20-1,0)) -> 1540.560059 | N122: 1455.27002
B123: j | C123: 2007-06-01 | D123: 1530.619995 | E123: 1540.560059 | F123: 1484.180054 | G123: 1503.349976 | H123: 3261343300 | I123: 1503.349976 | K123: =MIN(F124:OFFSET(F124,$L$20-1,0)) -> 1327.099976 | M123: =MAX(E124:OFFSET(E124,$L$20-1,0)) -> 1535.560059 | N123: 1503.349976
B124: m | C124: 2007-05-01 | D124: 1482.369995 | E124: 1535.560059 | F124: 1476.699951 | G124: 1530.619995 | H124: 3104253600 | I124: 1530.619995 | K124: =MIN(F125:OFFSET(F125,$L$20-1,0)) -> 1290.930054 | M124: =MAX(E125:OFFSET(E125,$L$20-1,0)) -> 1498.02002 | N124: 1530.619995
B125: a | C125: 2007-04-02 | D125: 1420.829956 | E125: 1498.02002 | F125: 1416.369995 | G125: 1482.369995 | H125: 3006294500 | I125: 1482.369995 | K125: =MIN(F126:OFFSET(F126,$L$20-1,0)) -> 1261.300049 | M125: =MAX(E126:OFFSET(E126,$L$20-1,0)) -> 1461.569946 | N125: 1482.369995
B126: m | C126: 2007-03-01 | D126: 1406.800049 | E126: 1438.890015 | F126: 1363.97998 | G126: 1420.859985 | H126: 3205736800 | I126: 1420.859985 | K126: =MIN(F127:OFFSET(F127,$L$20-1,0)) -> 1224.540039 | M126: =MAX(E127:OFFSET(E127,$L$20-1,0)) -> 1461.569946
B127: f | C127: 2007-02-01 | D127: 1437.900024 | E127: 1461.569946 | F127: 1389.420044 | G127: 1406.819946 | H127: 2935275700 | I127: 1406.819946 | K127: =MIN(F128:OFFSET(F128,$L$20-1,0)) -> 1219.290039 | M127: =MAX(E128:OFFSET(E128,$L$20-1,0)) -> 1441.609985 | N127: 1406.819946
B128: j | C128: 2007-01-03 | D128: 1418.030029 | E128: 1441.609985 | F128: 1403.969971 | G128: 1438.23999 | H128: 2983144500 | I128: 1438.23999 | K128: =MIN(F129:OFFSET(F129,$L$20-1,0)) -> 1219.290039 | M128: =MAX(E129:OFFSET(E129,$L$20-1,0)) -> 1431.810059 | N128: 1438.23999
A129: 2006 | B129: d | C129: 2006-12-01 | D129: 1400.630005 | E129: 1431.810059 | F129: 1385.930054 | G129: 1418.300049 | H129: 2462849000 | I129: 1418.300049 | K129: =MIN(F130:OFFSET(F130,$L$20-1,0)) -> 1219.290039 | M129: =MAX(E130:OFFSET(E130,$L$20-1,0)) -> 1407.890015 | N129: 1418.300049
B130: n | C130: 2006-11-01 | D130: 1377.76001 | E130: 1407.890015 | F130: 1360.97998 | G130: 1400.630005 | H130: 2826198000 | I130: 1400.630005 | K130: =MIN(F131:OFFSET(F131,$L$20-1,0)) -> 1219.290039 | M130: =MAX(E131:OFFSET(E131,$L$20-1,0)) -> 1389.449951 | N130: 1400.630005
B131: o | C131: 2006-10-02 | D131: 1335.819946 | E131: 1389.449951 | F131: 1327.099976 | G131: 1377.939941 | H131: 2708938600 | I131: 1377.939941 | K131: =MIN(F132:OFFSET(F132,$L$20-1,0)) -> 1219.290039 | M131: =MAX(E132:OFFSET(E132,$L$20-1,0)) -> 1340.280029 | N131: 1377.939941
B132: s | C132: 2006-09-01 | D132: 1303.800049 | E132: 1340.280029 | F132: 1290.930054 | G132: 1335.849976 | H132: 2563743500 | I132: 1335.849976 | K132: =MIN(F133:OFFSET(F133,$L$20-1,0)) -> 1219.290039 | M132: =MAX(E133:OFFSET(E133,$L$20-1,0)) -> 1326.699951 | N132: 1335.849976
B133: a | C133: 2006-08-01 | D133: 1278.530029 | E133: 1306.73999 | F133: 1261.300049 | G133: 1303.819946 | H133: 2280876500 | I133: 1303.819946 | K133: =MIN(F134:OFFSET(F134,$L$20-1,0)) -> 1219.290039 | M133: =MAX(E134:OFFSET(E134,$L$20-1,0)) -> 1326.699951
B134: j | C134: 2006-07-03 | D134: 1270.060059 | E134: 1280.420044 | F134: 1224.540039 | G134: 1276.660034 | H134: 2440476000 | I134: 1276.660034 | K134: =MIN(F135:OFFSET(F135,$L$20-1,0)) -> 1201.069946 | M134: =MAX(E135:OFFSET(E135,$L$20-1,0)) -> 1326.699951
B135: j | C135: 2006-06-01 | D135: 1270.050049 | E135: 1290.680054 | F135: 1219.290039 | G135: 1270.199951 | H135: 2632855400 | I135: 1270.199951 | K135: =MIN(F136:OFFSET(F136,$L$20-1,0)) -> 1168.199951 | M135: =MAX(E136:OFFSET(E136,$L$20-1,0)) -> 1326.699951
B136: m | C136: 2006-05-01 | D136: 1310.609985 | E136: 1326.699951 | F136: 1245.339966 | G136: 1270.089966 | H136: 2591135900 | I136: 1270.089966 | K136: =MIN(F137:OFFSET(F137,$L$20-1,0)) -> 1168.199951 | M136: =MAX(E137:OFFSET(E137,$L$20-1,0)) -> 1318.160034 | N136: 1270.089966
B137: a | C137: 2006-04-03 | D137: 1302.880005 | E137: 1318.160034 | F137: 1280.73999 | G137: 1310.609985 | H137: 2406755200 | I137: 1310.609985 | K137: =MIN(F138:OFFSET(F138,$L$20-1,0)) -> 1168.199951 | M137: =MAX(E138:OFFSET(E138,$L$20-1,0)) -> 1310.880005 | N137: 1310.609985
B138: m | C138: 2006-03-01 | D138: 1280.660034 | E138: 1310.880005 | F138: 1268.420044 | G138: 1294.869995 | H138: 2310510800 | I138: 1294.869995 | K138: =MIN(F139:OFFSET(F139,$L$20-1,0)) -> 1168.199951 | M138: =MAX(E139:OFFSET(E139,$L$20-1,0)) -> 1297.569946 | N138: 1294.869995
B139: f | C139: 2006-02-01 | D139: 1280.079956 | E139: 1297.569946 | F139: 1253.609985 | G139: 1280.660034 | H139: 2380568400 | I139: 1280.660034 | K139: =MIN(F140:OFFSET(F140,$L$20-1,0)) -> 1168.199951 | M139: =MAX(E140:OFFSET(E140,$L$20-1,0)) -> 1294.900024 | N139: 1280.660034
B140: j | C140: 2006-01-03 | D140: 1248.290039 | E140: 1294.900024 | F140: 1245.73999 | G140: 1280.079956 | H140: 2595998000 | I140: 1280.079956 | K140: =MIN(F141:OFFSET(F141,$L$20-1,0)) -> 1146.180054 | M140: =MAX(E141:OFFSET(E141,$L$20-1,0)) -> 1275.800049 | N140: 1280.079956
A141: 2005 | B141: d | C141: 2005-12-01 | D141: 1249.47998 | E141: 1275.800049 | F141: 1246.589966 | G141: 1248.290039 | H141: 2057125200 | I141: 1248.290039 | K141: =MIN(F142:OFFSET(F142,$L$20-1,0)) -> 1136.150024 | M141: =MAX(E142:OFFSET(E142,$L$20-1,0)) -> 1270.640015 | N141: 1248.290039
B142: n | C142: 2005-11-01 | D142: 1207.01001 | E142: 1270.640015 | F142: 1201.069946 | G142: 1249.47998 | H142: 2260836100 | I142: 1249.47998 | K142: =MIN(F143:OFFSET(F143,$L$20-1,0)) -> 1136.150024 | M142: =MAX(E143:OFFSET(E143,$L$20-1,0)) -> 1245.859985 | N142: 1249.47998
B143: o | C143: 2005-10-03 | D143: 1228.810059 | E143: 1233.339966 | F143: 1168.199951 | G143: 1207.01001 | H143: 2493393300 | I143: 1207.01001 | K143: =MIN(F144:OFFSET(F144,$L$20-1,0)) -> 1136.150024 | M143: =MAX(E144:OFFSET(E144,$L$20-1,0)) -> 1245.859985
B144: s | C144: 2005-09-01 | D144: 1220.329956 | E144: 1243.130005 | F144: 1205.349976 | G144: 1228.810059 | H144: 2232144200 | I144: 1228.810059 | K144: =MIN(F145:OFFSET(F145,$L$20-1,0)) -> 1136.150024 | M144: =MAX(E145:OFFSET(E145,$L$20-1,0)) -> 1245.859985
B145: a | C145: 2005-08-01 | D145: 1234.180054 | E145: 1245.859985 | F145: 1201.069946 | G145: 1220.329956 | H145: 1930243400 | I145: 1220.329956 | K145: =MIN(F146:OFFSET(F146,$L$20-1,0)) -> 1136.150024 | M145: =MAX(E146:OFFSET(E146,$L$20-1,0)) -> 1245.150024 | N145: 1220.329956
B146: j | C146: 2005-07-01 | D146: 1191.329956 | E146: 1245.150024 | F146: 1183.550049 | G146: 1234.180054 | H146: 1962713500 | I146: 1234.180054 | K146: =MIN(F147:OFFSET(F147,$L$20-1,0)) -> 1127.599976 | M146: =MAX(E147:OFFSET(E147,$L$20-1,0)) -> 1229.109985 | N146: 1234.180054
B147: j | C147: 2005-06-01 | D147: 1191.5 | E147: 1219.589966 | F147: 1188.300049 | G147: 1191.329956 | H147: 1929251300 | I147: 1191.329956 | K147: =MIN(F148:OFFSET(F148,$L$20-1,0)) -> 1090.290039 | M147: =MAX(E148:OFFSET(E148,$L$20-1,0)) -> 1229.109985
B148: m | C148: 2005-05-02 | D148: 1156.849976 | E148: 1199.560059 | F148: 1146.180054 | G148: 1191.5 | H148: 1960127100 | I148: 1191.5 | K148: =MIN(F149:OFFSET(F149,$L$20-1,0)) -> 1090.290039 | M148: =MAX(E149:OFFSET(E149,$L$20-1,0)) -> 1229.109985
B149: a | C149: 2005-04-01 | D149: 1180.589966 | E149: 1191.880005 | F149: 1136.150024 | G149: 1156.849976 | H149: 2180315700 | I149: 1156.849976 | K149: =MIN(F150:OFFSET(F150,$L$20-1,0)) -> 1060.719971 | M149: =MAX(E150:OFFSET(E150,$L$20-1,0)) -> 1229.109985
B150: m | C150: 2005-03-01 | D150: 1203.599976 | E150: 1229.109985 | F150: 1163.689941 | G150: 1180.589966 | H150: 1874017200 | I150: 1180.589966 | K150: =MIN(F151:OFFSET(F151,$L$20-1,0)) -> 1060.719971 | M150: =MAX(E151:OFFSET(E151,$L$20-1,0)) -> 1217.800049 | N150: 1180.589966
B151: f | C151: 2005-02-01 | D151: 1181.27002 | E151: 1212.439941 | F151: 1180.949951 | G151: 1203.599976 | H151: 1636467800 | I151: 1203.599976 | K151: =MIN(F152:OFFSET(F152,$L$20-1,0)) -> 1060.719971 | M151: =MAX(E152:OFFSET(E152,$L$20-1,0)) -> 1217.800049
B152: =LEFT(TEXT(C152,"MMM")) -> j | C152: 2005-01-03 | D152: 1211.920044 | E152: 1217.800049 | F152: 1163.75 | G152: 1181.27002 | H152: 1658930000 | I152: 1181.27002 | K152: =MIN(F153:OFFSET(F153,$L$20-1,0)) -> 1060.719971 | L152: =IF(F152<K152,G152,"") ->  | M152: =MAX(E153:OFFSET(E153,$L$20-1,0)) -> 1217.329956 | N152: =IF(E152>M152,G152,"") -> 1181.27002
A153: =IF(YEAR(C153)<>YEAR(C152),YEAR(C153),"") -> 2004 | B153: d | C153: 2004-12-01 | D153: 1173.780029 | E153: 1217.329956 | F153: 1173.780029 | G153: 1211.920044 | H153: 1449518100 | I153: 1211.920044 | K153: =MIN(F154:OFFSET(F154,$L$20-1,0)) -> 1060.719971 | M153: =MAX(E154:OFFSET(E154,$L$20-1,0)) -> 1188.459961 | N153: 1211.920044
B154: n | C154: 2004-11-01 | D154: 1130.199951 | E154: 1188.459961 | F154: 1127.599976 | G154: 1173.819946 | H154: 1524465700 | I154: 1173.819946 | K154: =MIN(F155:OFFSET(F155,$L$20-1,0)) -> 1060.719971 | M154: =MAX(E155:OFFSET(E155,$L$20-1,0)) -> 1163.22998 | N154: 1173.819946
B155: o | C155: 2004-10-01 | D155: 1114.579956 | E155: 1142.050049 | F155: 1090.290039 | G155: 1130.199951 | H155: 1571990400 | I155: 1130.199951 | K155: =MIN(F156:OFFSET(F156,$L$20-1,0)) -> 1060.719971 | M155: =MAX(E156:OFFSET(E156,$L$20-1,0)) -> 1163.22998
B156: s | C156: 2004-09-01 | D156: 1104.23999 | E156: 1131.540039 | F156: 1099.180054 | G156: 1114.579956 | H156: 1360850900 | I156: 1114.579956 | K156: =MIN(F157:OFFSET(F157,$L$20-1,0)) -> 1060.719971 | M156: =MAX(E157:OFFSET(E157,$L$20-1,0)) -> 1163.22998
B157: a | C157: 2004-08-02 | D157: 1101.719971 | E157: 1109.680054 | F157: 1060.719971 | G157: 1104.23999 | H157: 1260227200 | I157: 1104.23999 | K157: =MIN(F158:OFFSET(F158,$L$20-1,0)) -> 1053.410034 | M157: =MAX(E158:OFFSET(E158,$L$20-1,0)) -> 1163.22998
B158: j | C158: 2004-07-01 | D158: 1140.839966 | E158: 1140.839966 | F158: 1078.780029 | G158: 1101.719971 | H158: 1456371400 | I158: 1101.719971 | K158: =MIN(F159:OFFSET(F159,$L$20-1,0)) -> 1031.199951 | M158: =MAX(E159:OFFSET(E159,$L$20-1,0)) -> 1163.22998
B159: j | C159: 2004-06-01 | D159: 1120.680054 | E159: 1146.339966 | F159: 1113.319946 | G159: 1140.839966 | H159: 1381109500 | I159: 1140.839966 | K159: =MIN(F160:OFFSET(F160,$L$20-1,0)) -> 995.969971 | M159: =MAX(E160:OFFSET(E160,$L$20-1,0)) -> 1163.22998
B160: m | C160: 2004-05-03 | D160: 1107.300049 | E160: 1127.73999 | F160: 1076.319946 | G160: 1120.680054 | H160: 1524950000 | I160: 1120.680054 | K160: =MIN(F161:OFFSET(F161,$L$20-1,0)) -> 990.359985 | M160: =MAX(E161:OFFSET(E161,$L$20-1,0)) -> 1163.22998
B161: a | C161: 2004-04-01 | D161: 1126.209961 | E161: 1150.569946 | F161: 1107.22998 | G161: 1107.300049 | H161: 1583171400 | I161: 1107.300049 | K161: =MIN(F162:OFFSET(F162,$L$20-1,0)) -> 960.840027 | M161: =MAX(E162:OFFSET(E162,$L$20-1,0)) -> 1163.22998
B162: m | C162: 2004-03-01 | D162: 1144.939941 | E162: 1163.22998 | F162: 1087.160034 | G162: 1126.209961 | H162: 1528634700 | I162: 1126.209961 | K162: =MIN(F163:OFFSET(F163,$L$20-1,0)) -> 960.840027 | M162: =MAX(E163:OFFSET(E163,$L$20-1,0)) -> 1158.97998 | N162: 1126.209961
B163: f | C163: 2004-02-02 | D163: 1131.130005 | E163: 1158.97998 | F163: 1124.439941 | G163: 1144.939941 | H163: 1554000000 | I163: 1144.939941 | K163: =MIN(F164:OFFSET(F164,$L$20-1,0)) -> 960.840027 | M163: =MAX(E164:OFFSET(E164,$L$20-1,0)) -> 1155.380005 | N163: 1144.939941
B164: j | C164: 2004-01-02 | D164: 1111.920044 | E164: 1155.380005 | F164: 1105.079956 | G164: 1131.130005 | H164: 1722750000 | I164: 1131.130005 | K164: =MIN(F165:OFFSET(F165,$L$20-1,0)) -> 902.830017 | M164: =MAX(E165:OFFSET(E165,$L$20-1,0)) -> 1112.560059 | N164: 1131.130005
A165: 2003 | B165: d | C165: 2003-12-01 | D165: 1058.199951 | E165: 1112.560059 | F165: 1053.410034 | G165: 1111.920044 | H165: 1312119500 | I165: 1111.920044 | K165: =MIN(F166:OFFSET(F166,$L$20-1,0)) -> 847.849976 | M165: =MAX(E166:OFFSET(E166,$L$20-1,0)) -> 1063.650024 | N165: 1111.920044
B166: n | C166: 2003-11-03 | D166: 1050.709961 | E166: 1063.650024 | F166: 1031.199951 | G166: 1058.199951 | H166: 1313181000 | I166: 1058.199951 | K166: =MIN(F167:OFFSET(F167,$L$20-1,0)) -> 788.900024 | M166: =MAX(E167:OFFSET(E167,$L$20-1,0)) -> 1053.790039 | N166: 1058.199951
B167: o | C167: 2003-10-01 | D167: 995.969971 | E167: 1053.790039 | F167: 995.969971 | G167: 1050.709961 | H167: 1469452100 | I167: 1050.709961 | K167: =MIN(F168:OFFSET(F168,$L$20-1,0)) -> 788.900024 | M167: =MAX(E168:OFFSET(E168,$L$20-1,0)) -> 1040.290039 | N167: 1050.709961
B168: s | C168: 2003-09-02 | D168: 1008.01001 | E168: 1040.290039 | F168: 990.359985 | G168: 995.969971 | H168: 1501457600 | I168: 995.969971 | K168: =MIN(F169:OFFSET(F169,$L$20-1,0)) -> 788.900024 | M168: =MAX(E169:OFFSET(E169,$L$20-1,0)) -> 1015.409973 | N168: 995.969971
B169: a | C169: 2003-08-01 | D169: 990.309998 | E169: 1011.01001 | F169: 960.840027 | G169: 1008.01001 | H169: 1229836600 | I169: 1008.01001 | K169: =MIN(F170:OFFSET(F170,$L$20-1,0)) -> 788.900024 | M169: =MAX(E170:OFFSET(E170,$L$20-1,0)) -> 1015.409973
B170: j | C170: 2003-07-01 | D170: 974.5 | E170: 1015.409973 | F170: 962.099976 | G170: 990.309998 | H170: 1507327200 | I170: 990.309998 | K170: =MIN(F171:OFFSET(F171,$L$20-1,0)) -> 788.900024 | M170: =MAX(E171:OFFSET(E171,$L$20-1,0)) -> 1015.330017 | N170: 990.309998
B171: j | C171: 2003-06-02 | D171: 963.590027 | E171: 1015.330017 | F171: 963.590027 | G171: 974.5 | H171: 1562219000 | I171: 974.5 | K171: =MIN(F172:OFFSET(F172,$L$20-1,0)) -> 768.630005 | M171: =MAX(E172:OFFSET(E172,$L$20-1,0)) -> 965.380005 | N171: 974.5
B172: m | C172: 2003-05-01 | D172: 916.919983 | E172: 965.380005 | F172: 902.830017 | G172: 963.590027 | H172: 1554328500 | I172: 963.590027 | K172: =MIN(F173:OFFSET(F173,$L$20-1,0)) -> 768.630005 | M172: =MAX(E173:OFFSET(E173,$L$20-1,0)) -> 954.280029 | N172: 963.590027
B173: a | C173: 2003-04-01 | D173: 848.179993 | E173: 924.23999 | F173: 847.849976 | G173: 916.919983 | H173: 1498005700 | I173: 916.919983 | K173: =MIN(F174:OFFSET(F174,$L$20-1,0)) -> 768.630005 | M173: =MAX(E174:OFFSET(E174,$L$20-1,0)) -> 965
B174: m | C174: 2003-03-03 | D174: 841.150024 | E174: 895.900024 | F174: 788.900024 | G174: 848.179993 | H174: 1503596600 | I174: 848.179993 | K174: =MIN(F175:OFFSET(F175,$L$20-1,0)) -> 768.630005 | M174: =MAX(E175:OFFSET(E175,$L$20-1,0)) -> 994.460022
B175: f | C175: 2003-02-03 | D175: 855.700012 | E175: 864.640015 | F175: 806.289978 | G175: 841.150024 | H175: 1400452600 | I175: 841.150024 | K175: =MIN(F176:OFFSET(F176,$L$20-1,0)) -> 768.630005 | M175: =MAX(E176:OFFSET(E176,$L$20-1,0)) -> 1070.73999
B176: j | C176: 2003-01-02 | D176: 879.820007 | E176: 935.049988 | F176: 840.340027 | G176: 855.700012 | H176: 1539433800 | I176: 855.700012 | K176: =MIN(F177:OFFSET(F177,$L$20-1,0)) -> 768.630005 | M176: =MAX(E177:OFFSET(E177,$L$20-1,0)) -> 1106.589966
A177: 2002 | B177: d | C177: 2002-12-02 | D177: 936.309998 | E177: 954.280029 | F177: 869.450012 | G177: 879.820007 | H177: 1289625700 | I177: 879.820007 | K177: =MIN(F178:OFFSET(F178,$L$20-1,0)) -> 768.630005 | M177: =MAX(E178:OFFSET(E178,$L$20-1,0)) -> 1147.839966
B178: n | C178: 2002-11-01 | D178: 885.76001 | E178: 941.820007 | F178: 872.049988 | G178: 936.309998 | H178: 1492221000 | I178: 936.309998 | K178: =MIN(F179:OFFSET(F179,$L$20-1,0)) -> 768.630005 | M178: =MAX(E179:OFFSET(E179,$L$20-1,0)) -> 1173.939941
B179: o | C179: 2002-10-01 | D179: 815.280029 | E179: 907.440002 | F179: 768.630005 | G179: 885.76001 | H179: 1717287300 | I179: 885.76001 | K179: =MIN(F180:OFFSET(F180,$L$20-1,0)) -> 775.679993 | L179: 885.76001 | M179: =MAX(E180:OFFSET(E180,$L$20-1,0)) -> 1173.939941
B180: s | C180: 2002-09-03 | D180: 916.070007 | E180: 924.02002 | F180: 800.200012 | G180: 815.280029 | H180: 1472279000 | I180: 815.280029 | K180: =MIN(F181:OFFSET(F181,$L$20-1,0)) -> 775.679993 | M180: =MAX(E181:OFFSET(E181,$L$20-1,0)) -> 1176.969971
B181: a | C181: 2002-08-01 | D181: 911.619995 | E181: 965 | F181: 833.440002 | G181: 916.070007 | H181: 1374013600 | I181: 916.070007 | K181: =MIN(F182:OFFSET(F182,$L$20-1,0)) -> 775.679993 | M181: =MAX(E182:OFFSET(E182,$L$20-1,0)) -> 1176.969971
B182: j | C182: 2002-07-01 | D182: 989.820007 | E182: 994.460022 | F182: 775.679993 | G182: 911.619995 | H182: 2012640000 | I182: 911.619995 | K182: =MIN(F183:OFFSET(F183,$L$20-1,0)) -> 952.919983 | L182: 911.619995 | M182: =MAX(E183:OFFSET(E183,$L$20-1,0)) -> 1176.969971
B183: j | C183: 2002-06-03 | D183: 1067.140015 | E183: 1070.73999 | F183: 952.919983 | G183: 989.820007 | H183: 1604925500 | I183: 989.820007 | K183: =MIN(F184:OFFSET(F184,$L$20-1,0)) -> 1026.76001 | L183: 989.820007 | M183: =MAX(E184:OFFSET(E184,$L$20-1,0)) -> 1176.969971
B184: m | C184: 2002-05-01 | D184: 1076.920044 | E184: 1106.589966 | F184: 1048.959961 | G184: 1067.140015 | H184: 1281036300 | I184: 1067.140015 | K184: =MIN(F185:OFFSET(F185,$L$20-1,0)) -> 944.75 | M184: =MAX(E185:OFFSET(E185,$L$20-1,0)) -> 1176.969971
B185: a | C185: 2002-04-01 | D185: 1147.390015 | E185: 1147.839966 | F185: 1063.459961 | G185: 1076.920044 | H185: 1372613600 | I185: 1076.920044 | K185: =MIN(F186:OFFSET(F186,$L$20-1,0)) -> 944.75 | M185: =MAX(E186:OFFSET(E186,$L$20-1,0)) -> 1226.27002
B186: m | C186: 2002-03-01 | D186: 1106.72998 | E186: 1173.939941 | F186: 1106.72998 | G186: 1147.390015 | H186: 1385540000 | I186: 1147.390015 | K186: =MIN(F187:OFFSET(F187,$L$20-1,0)) -> 944.75 | M186: =MAX(E187:OFFSET(E187,$L$20-1,0)) -> 1239.780029
B187: f | C187: 2002-02-01 | D187: 1130.199951 | E187: 1130.199951 | F187: 1074.359985 | G187: 1106.72998 | H187: 1444200000 | I187: 1106.72998 | K187: =MIN(F188:OFFSET(F188,$L$20-1,0)) -> 944.75 | M187: =MAX(E188:OFFSET(E188,$L$20-1,0)) -> 1286.619995
B188: j | C188: 2002-01-02 | D188: 1148.079956 | E188: 1176.969971 | F188: 1081.660034 | G188: 1130.199951 | H188: 1490628500 | I188: 1130.199951 | K188: =MIN(F189:OFFSET(F189,$L$20-1,0)) -> 944.75 | M188: =MAX(E189:OFFSET(E189,$L$20-1,0)) -> 1315.930054
A189: 2001 | B189: d | C189: 2001-12-03 | D189: 1139.449951 | E189: 1173.619995 | F189: 1114.530029 | G189: 1148.079956 | H189: 1303608500 | I189: 1148.079956 | K189: =MIN(F190:OFFSET(F190,$L$20-1,0)) -> 944.75 | M189: =MAX(E190:OFFSET(E190,$L$20-1,0)) -> 1315.930054
B190: n | C190: 2001-11-01 | D190: 1059.780029 | E190: 1163.380005 | F190: 1054.310059 | G190: 1139.449951 | H190: 1317790400 | I190: 1139.449951 | K190: =MIN(F191:OFFSET(F191,$L$20-1,0)) -> 944.75 | M190: =MAX(E191:OFFSET(E191,$L$20-1,0)) -> 1315.930054
B191: o | C191: 2001-10-01 | D191: 1040.939941 | E191: 1110.609985 | F191: 1026.76001 | G191: 1059.780029 | H191: 1361033900 | I191: 1059.780029 | K191: =MIN(F192:OFFSET(F192,$L$20-1,0)) -> 944.75 | M191: =MAX(E192:OFFSET(E192,$L$20-1,0)) -> 1376.380005
B192: s | C192: 2001-09-04 | D192: 1133.579956 | E192: 1155.400024 | F192: 944.75 | G192: 1040.939941 | H192: 1777119300 | I192: 1040.939941 | K192: =MIN(F193:OFFSET(F193,$L$20-1,0)) -> 1081.189941 | L192: 1040.939941 | M192: =MAX(E193:OFFSET(E193,$L$20-1,0)) -> 1383.369995
B193: a | C193: 2001-08-01 | D193: 1211.22998 | E193: 1226.27002 | F193: 1124.869995 | G193: 1133.579956 | H193: 1055621700 | I193: 1133.579956 | K193: =MIN(F194:OFFSET(F194,$L$20-1,0)) -> 1081.189941 | M193: =MAX(E194:OFFSET(E194,$L$20-1,0)) -> 1389.050049
B194: j | C194: 2001-07-02 | D194: 1224.420044 | E194: 1239.780029 | F194: 1165.540039 | G194: 1211.22998 | H194: 1186805200 | I194: 1211.22998 | K194: =MIN(F195:OFFSET(F195,$L$20-1,0)) -> 1081.189941 | M194: =MAX(E195:OFFSET(E195,$L$20-1,0)) -> 1438.459961
B195: j | C195: 2001-06-01 | D195: 1255.819946 | E195: 1286.619995 | F195: 1203.030029 | G195: 1224.380005 | H195: 1265732800 | I195: 1224.380005 | K195: =MIN(F196:OFFSET(F196,$L$20-1,0)) -> 1081.189941 | M195: =MAX(E196:OFFSET(E196,$L$20-1,0)) -> 1454.819946
B196: m | C196: 2001-05-01 | D196: 1249.459961 | E196: 1315.930054 | F196: 1232 | G196: 1255.819946 | H196: 1170568100 | I196: 1255.819946 | K196: =MIN(F197:OFFSET(F197,$L$20-1,0)) -> 1081.189941 | M196: =MAX(E197:OFFSET(E197,$L$20-1,0)) -> 1530.089966
B197: a | C197: 2001-04-02 | D197: 1160.329956 | E197: 1269.300049 | F197: 1091.98999 | G197: 1249.459961 | H197: 1333839500 | I197: 1249.459961 | K197: =MIN(F198:OFFSET(F198,$L$20-1,0)) -> 1081.189941 | M197: =MAX(E198:OFFSET(E198,$L$20-1,0)) -> 1530.089966
B198: m | C198: 2001-03-01 | D198: 1239.939941 | E198: 1267.420044 | F198: 1081.189941 | G198: 1160.329956 | H198: 1322155000 | I198: 1160.329956 | K198: =MIN(F199:OFFSET(F199,$L$20-1,0)) -> 1215.439941 | L198: 1160.329956 | M198: =MAX(E199:OFFSET(E199,$L$20-1,0)) -> 1530.089966
B199: f | C199: 2001-02-01 | D199: 1366.01001 | E199: 1376.380005 | F199: 1215.439941 | G199: 1239.939941 | H199: 1203668400 | I199: 1239.939941 | K199: =MIN(F200:OFFSET(F200,$L$20-1,0)) -> 1254.069946 | L199: 1239.939941 | M199: =MAX(E200:OFFSET(E200,$L$20-1,0)) -> 1530.089966
B200: j | C200: 2001-01-02 | D200: 1320.280029 | E200: 1383.369995 | F200: 1274.619995 | G200: 1366.01001 | H200: 1386909500 | I200: 1366.01001 | K200: =MIN(F201:OFFSET(F201,$L$20-1,0)) -> 1254.069946 | M200: =MAX(E201:OFFSET(E201,$L$20-1,0)) -> 1530.089966
A201: 2000 | B201: d | C201: 2000-12-01 | D201: 1314.949951 | E201: 1389.050049 | F201: 1254.069946 | G201: 1320.280029 | H201: 1232315000 | I201: 1320.280029 | K201: =MIN(F202:OFFSET(F202,$L$20-1,0)) -> 1294.900024 | L201: 1320.280029 | M201: =MAX(E202:OFFSET(E202,$L$20-1,0)) -> 1530.089966
B202: n | C202: 2000-11-01 | D202: 1429.400024 | E202: 1438.459961 | F202: 1294.900024 | G202: 1314.949951 | H202: 1034230000 | I202: 1314.949951 | K202: =MIN(F203:OFFSET(F203,$L$20-1,0)) -> 1305.790039 | L202: 1314.949951 | M202: =MAX(E203:OFFSET(E203,$L$20-1,0)) -> 1552.869995
B203: o | C203: 2000-10-02 | D203: 1436.52002 | E203: 1454.819946 | F203: 1305.790039 | G203: 1429.400024 | H203: 1241718100 | I203: 1429.400024 | K203: =MIN(F204:OFFSET(F204,$L$20-1,0)) -> 1325.069946 | L203: 1429.400024 | M203: =MAX(E204:OFFSET(E204,$L$20-1,0)) -> 1552.869995
B204: s | C204: 2000-09-01 | D204: 1517.680054 | E204: 1530.089966 | F204: 1419.439941 | G204: 1436.51001 | H204: 1101770000 | I204: 1436.51001 | K204: =MIN(F205:OFFSET(F205,$L$20-1,0)) -> 1325.069946 | M204: =MAX(E205:OFFSET(E205,$L$20-1,0)) -> 1552.869995
B205: a | C205: 2000-08-01 | D205: 1430.829956 | E205: 1525.209961 | F205: 1425.430054 | G205: 1517.680054 | H205: 931317300 | I205: 1517.680054 | K205: =MIN(F206:OFFSET(F206,$L$20-1,0)) -> 1325.069946 | M205: =MAX(E206:OFFSET(E206,$L$20-1,0)) -> 1552.869995
B206: j | C206: 2000-07-03 | D206: 1454.599976 | E206: 1517.319946 | F206: 1413.890015 | G206: 1430.829956 | H206: 1002085000 | I206: 1430.829956 | K206: =MIN(F207:OFFSET(F207,$L$20-1,0)) -> 1325.069946 | M206: =MAX(E207:OFFSET(E207,$L$20-1,0)) -> 1552.869995
B207: j | C207: 2000-06-01 | D207: 1420.599976 | E207: 1488.930054 | F207: 1420.599976 | G207: 1454.599976 | H207: 1054454500 | I207: 1454.599976 | K207: =MIN(F208:OFFSET(F208,$L$20-1,0)) -> 1233.699951 | M207: =MAX(E208:OFFSET(E208,$L$20-1,0)) -> 1552.869995
B208: m | C208: 2000-05-01 | D208: 1452.430054 | E208: 1481.51001 | F208: 1361.089966 | G208: 1420.599976 | H208: 948127200 | I208: 1420.599976 | K208: =MIN(F209:OFFSET(F209,$L$20-1,0)) -> 1233.699951 | M208: =MAX(E209:OFFSET(E209,$L$20-1,0)) -> 1552.869995
B209: a | C209: 2000-04-03 | D209: 1498.579956 | E209: 1527.189941 | F209: 1339.400024 | G209: 1452.430054 | H209: 1110055700 | I209: 1452.430054 | K209: =MIN(F210:OFFSET(F210,$L$20-1,0)) -> 1233.699951 | M209: =MAX(E210:OFFSET(E210,$L$20-1,0)) -> 1552.869995
B210: m | C210: 2000-03-01 | D210: 1366.420044 | E210: 1552.869995 | F210: 1346.619995 | G210: 1498.579956 | H210: 1190591300 | I210: 1498.579956 | K210: =MIN(F211:OFFSET(F211,$L$20-1,0)) -> 1233.699951 | M210: =MAX(E211:OFFSET(E211,$L$20-1,0)) -> 1478 | N210: 1498.579956
B211: f | C211: 2000-02-01 | D211: 1394.459961 | E211: 1444.550049 | F211: 1325.069946 | G211: 1366.420044 | H211: 1105815000 | I211: 1366.420044 | K211: =MIN(F212:OFFSET(F212,$L$20-1,0)) -> 1233.699951 | M211: =MAX(E212:OFFSET(E212,$L$20-1,0)) -> 1478
B212: j | C212: 2000-01-03 | D212: 1469.25 | E212: 1478 | F212: 1350.140015 | G212: 1394.459961 | H212: 1124410000 | I212: 1394.459961 | K212: =MIN(F213:OFFSET(F213,$L$20-1,0)) -> 1233.699951 | M212: =MAX(E213:OFFSET(E213,$L$20-1,0)) -> 1473.099976 | N212: 1394.459961
A213: 1999 | B213: d | C213: 1999-12-01 | D213: 1388.910034 | E213: 1473.099976 | F213: 1387.380005 | G213: 1469.25 | H213: 909760900 | I213: 1469.25 | K213: =MIN(F214:OFFSET(F214,$L$20-1,0)) -> 1233.699951 | M213: =MAX(E214:OFFSET(E214,$L$20-1,0)) -> 1425.310059 | N213: 1469.25
B214: n | C214: 1999-11-01 | D214: 1362.930054 | E214: 1425.310059 | F214: 1346.410034 | G214: 1388.910034 | H214: 920777100 | I214: 1388.910034 | K214: =MIN(F215:OFFSET(F215,$L$20-1,0)) -> 1216.030029 | M214: =MAX(E215:OFFSET(E215,$L$20-1,0)) -> 1420.329956 | N214: 1388.910034
B215: o | C215: 1999-10-01 | D215: 1282.709961 | E215: 1373.170044 | F215: 1233.699951 | G215: 1362.930054 | H215: 950119000 | I215: 1362.930054 | K215: =MIN(F216:OFFSET(F216,$L$20-1,0)) -> 1211.890015 | M215: =MAX(E216:OFFSET(E216,$L$20-1,0)) -> 1420.329956
B216: =LEFT(TEXT(C216,"MMM")) -> s | C216: 1999-09-01 | D216: 1320.410034 | E216: 1361.390015 | F216: 1256.26001 | G216: 1282.709961 | H216: 831252300 | I216: 1282.709961 | K216: =MIN(F217:OFFSET(F217,$L$20-1,0)) -> 1205.459961 | L216: =IF(F216<K216,G216,"") ->  | M216: =MAX(E217:OFFSET(E217,$L$20-1,0)) -> 1420.329956 | N216: =IF(E216>M216,G216,"") -> 
A217: =IF(YEAR(C217)<>YEAR(C216),YEAR(C217),"") ->  | B217: a | C217: 1999-08-02 | D217: 1328.719971 | E217: 1382.839966 | F217: 1267.72998 | G217: 1320.410034 | H217: 758193100 | I217: 1320.410034 | K217: =MIN(F218:OFFSET(F218,$L$20-1,0)) -> 1136.890015 | M217: =MAX(E218:OFFSET(E218,$L$20-1,0)) -> 1420.329956
... 138 more rows
